bitfinex-derivatives/quotes_ETHF0:USTF0_20210401
["timestamp","ask_amount","ask_price","bid_price","bid_amount"]
[1617300383965,2.90695,1933.1,1932.2,30.0]
[1617300384197,60.7002,1932.8,1932.2,30.0]
[1617300384406,62.1107,1932.8,1932.3,2.90695]
[1617300385867,1.4105,1932.8,1932.3,2.90695]
[1617300386068,1.2436,1933.4,1932.3,2.90695]
[1617300386269,2.90695,1932.4,1932.3,2.90695]
[1617300388769,78.1621,1933.9,1932.4,78.1621]
[1617300388969,78.1621,1933.9,1932.5,30.0]
[1617300389671,78.1621,1933.9,1932.6,2.0]
[1617300389870,78.1621,1933.9,1932.7,30.0]
[1617300390368,2.0,1934.8,1933.3,2.90695]
[1617300390569,73.3187,1934.7,1933.4,73.3187]
[1617300392370,2.90695,1933.5,1933.3,2.90695]
[1617300393370,2.90695,1933.5,1933.0,72.7291]
[1617300394373,2.90695,1933.1,1932.8,2.90695]
[1617300394742,3.99035,1933.1,1932.8,2.90695]
[1617300396374,2.90695,1932.9,1932.8,2.90695]
[1617300396575,2.90695,1932.9,1932.2,30.0]
[1617300397174,2.90695,1932.9,1932.3,0.35009295]
[1617300398478,2.90695,1932.4,1932.3,2.90695]
[1617300398878,2.90695,1932.4,1932.3,3.25703648]
[1617300400282,2.90695,1932.4,1932.3,2.90695]
[1617300400885,2.90695,1932.4,1932.3,3.25702598]
[1617300402586,2.90695,1932.4,1932.3,2.90695]
[1617300402885,2.90695,1932.4,1932.3,3.25704774]
[1617300403787,2.90695,1932.4,1932.3,2.90695]
[1617300404487,2.90695,1932.4,1932.3,3.25701873]
[1617300406888,84.6685,1933.2,1932.3,33.25701873]
[1617300407088,84.6685,1933.2,1932.4,2.0]
[1617300407393,84.6685,1933.2,1932.5,0.34984474]
[1617300407689,84.6685,1933.2,1932.5,1.93194474]
[1617300407987,84.6685,1933.2,1932.6,0.35009603]
[1617300408389,84.6685,1933.2,1932.9,2.90695]
[1617300408589,84.6685,1933.2,1932.9,4.52335]
[1617300410191,84.6685,1933.2,1932.5,30.0]
[1617300410391,2.90695,1932.8,1932.7,2.90695]
[1617300413394,2.90695,1932.8,1932.3,30.0]
[1617300414000,2.90695,1932.8,1932.0,88.88925602]
[1617300414201,2.90695,1932.8,1932.0,84.6685]
[1617300414403,2.90695,1932.8,1932.1,0.3502191]
[1617300414600,2.90695,1932.5,1932.3,2.90695]
[1617300414901,2.90695,1932.5,1932.4,2.0]
[1617300415410,2.90695,1932.5,1932.3,2.90695]
[1617300417706,2.90695,1932.5,1932.4,20.0]
[1617300418904,2.90695,1932.5,1931.6,2.90695]
[1617300419106,74.3408,1932.0,1931.6,2.90695]
[1617300419306,75.9079,1932.0,1931.6,2.90695]
[1617300420506,75.9079,1932.0,1931.2,30.0]
[1617300420707,75.9079,1932.0,1931.5,2.90695]
[1617300420905,74.3408,1932.0,1931.5,2.90695]
[1617300421107,74.3408,1932.0,1931.3,0.35061199]
[1617300421306,74.3408,1932.0,1931.2,30.0]
[1617300421511,74.3408,1932.0,1931.4,20.0]
[1617300421906,74.3408,1932.0,1931.5,0.35063543]
[1617300422318,1.0041,1932.6,1930.9,4.2182509]
[1617300422518,72.0433,1931.1,1930.8,4.21841948]
[1617300422744,2.90695,1930.9,1930.8,4.21841948]
[1617300422938,4.17915,1930.9,1930.5,4.21916477]
[1617300423310,4.17915,1930.9,1930.5,4.19916477]
[1617300423510,4.17915,1930.9,1930.6,20.0]
[1617300423911,4.17915,1930.9,1929.8,5.43908523]
[1617300424110,72.867,1930.5,1929.8,5.43908523]
[1617300424310,72.867,1930.5,1929.9,0.35112289]
[1617300424614,2.90695,1930.0,1929.9,0.35112289]
[1617300424810,2.90695,1930.0,1929.8,0.35113448]
[1617300425011,2.90695,1930.0,1929.5,2.90695]
[1617300426742,1.6377,1930.1,1929.5,2.90695]
[1617300426743,2.90695,1929.6,1929.5,2.90695]
[1617300427195,2.90695,1929.6,1928.4,32.0]
[1617300427386,4.32105,1929.6,1928.4,32.0]
[1617300427514,75.0372,1928.7,1928.4,32.0]
[1617300427714,75.0372,1928.7,1928.4,30.0]
[1617300428134,75.0372,1928.7,1927.5,1.82584499]
[1617300428135,76.1329,1928.7,1927.5,1.82584499]
[1617300428353,76.1329,1928.7,1927.5,31.82584499]
[1617300428587,1.0957,1928.7,1927.5,30.0]
[1617300428763,62.8261,1927.8,1927.5,30.0]
[1617300429367,62.8261,1927.8,1927.6,30.0]
[1617300430215,2.90695,1928.4,1927.6,30.0]
[1617300430716,2.90695,1929.0,1928.3,2.90695]
[1617300431050,2.90695,1929.0,1928.4,106.5697]
[1617300431216,2.90695,1929.0,1928.4,30.0]
[1617300431619,64.1523,1927.8,1927.6,30.0]
[1617300432716,64.1523,1927.8,1927.7,2.90695]
[1617300432917,64.1523,1927.8,1927.7,32.90695]
[1617300433216,2.90695,1928.0,1927.7,32.90695]
[1617300433416,2.0,1930.5,1927.7,32.90695]
[1617300433417,72.9695,1928.1,1927.7,32.90695]
[1617300434720,72.9695,1928.1,1928.0,2.90695]
[1617300434938,72.9695,1928.1,1928.0,32.90695]
[1617300435924,2.90695,1928.5,1928.0,32.90695]
[1617300436122,30.0,1930.9,1928.0,32.90695]
[1617300436323,83.1556,1930.0,1928.1,83.1556]
[1617300436636,83.1556,1930.0,1928.2,33.0419]
[1617300436922,83.1556,1930.0,1929.6,2.90695]
[1617300437124,83.1556,1930.0,1928.2,30.0]
[1617300437325,30.0,1931.0,1928.2,30.0]
[1617300437528,81.5233,1929.6,1928.2,30.0]
[1617300438925,81.5233,1929.6,1929.1,2.90695]
[1617300440730,1.0283,1931.1,1930.1,2.90695]
[1617300440929,14.0926,1932.5,1930.1,2.90695]
[1617300441130,77.5114,1931.1,1930.1,2.90695]
[1617300442834,2.90695,1930.2,1930.1,2.90695]
[1617300443643,2.90695,1930.2,1930.1,52.90695]
[1617300445537,77.5114,1931.1,1930.1,52.90695]
[1617300446940,77.5114,1931.1,1931.0,2.90695]
[1617300447641,77.5114,1931.1,1931.0,22.90695]
[1617300448664,77.5114,1931.1,1931.0,20.0]
[1617300448858,80.41835,1931.1,1931.0,20.0]
[1617300453052,2.90695,1931.1,1931.0,20.0]
[1617300456859,2.90695,1931.1,1931.0,22.90695]
[1617300460962,2.90695,1931.1,1931.0,20.0]
[1617300462662,61.2972,1932.2,1931.0,20.0]
[1617300462962,59.2972,1932.2,1931.2,2.90695]
[1617300463762,59.2972,1932.2,1931.3,20.0]
[1617300464965,1.0271,1932.6,1931.6,2.90695]
[1617300465366,1.0271,1932.6,1931.7,74.706]
[1617300465867,1.0271,1932.6,1931.7,94.706]
[1617300466968,2.90695,1931.8,1931.7,94.706]
[1617300467168,2.90695,1931.8,1931.7,20.0]
[1617300468069,4.90695,1931.8,1931.7,20.0]
[1617300469472,70.31265,1931.8,1931.7,20.0]
[1617300471179,4.90695,1931.8,1931.7,20.0]
[1617300471375,2.90695,1931.8,1931.7,20.0]
[1617300472278,4.90695,1931.8,1931.7,20.0]
[1617300472477,34.90695,1931.8,1931.7,20.0]
[1617300473879,4.90695,1931.8,1931.7,20.0]
[1617300474078,2.90695,1931.8,1931.7,20.0]
[1617300475780,4.90695,1931.8,1931.7,20.0]
[1617300479889,34.90695,1931.8,1931.7,20.0]
[1617300480688,2.90695,1931.8,1931.7,20.0]
[1617300481390,4.90695,1931.8,1931.7,20.0]
[1617300482290,2.90695,1931.8,1931.7,20.0]
[1617300485091,2.90695,1931.8,1931.7,19.3589]
[1617300486994,32.90695,1931.8,1931.7,19.3589]
[1617300487394,34.90695,1931.8,1931.7,19.3589]
[1617300487693,34.90695,1931.8,1931.7,16.0658]
[1617300487893,34.90695,1931.8,1931.7,11.7496]
[1617300488294,34.90695,1931.8,1930.1,77.0218]
[1617300488494,2.0,1931.6,1930.1,77.0218]
[1617300488695,77.0569,1931.7,1930.1,77.0218]
[1617300488696,2.0,1931.4,1930.1,77.0218]
[1617300488995,32.0,1931.3,1930.2,20.0]
[1617300489197,2.90695,1930.3,1930.2,20.0]
[1617300493403,2.90695,1930.3,1930.1,77.0218]
[1617300499614,2.90695,1930.3,1929.6,2.90695]
[1617300499814,4.90695,1930.3,1928.6,32.0]
[1617300500014,66.4293,1929.8,1928.6,32.0]
[1617300500414,66.4293,1929.8,1928.7,0.35276406]
[1617300501214,66.4293,1929.8,1929.2,2.90695]
[1617300503318,66.4293,1929.8,1928.7,30.0]
[1617300503717,66.4293,1929.8,1928.8,0.35192071]
[1617300505218,66.4293,1929.8,1929.3,2.90695]
[1617300505520,66.4293,1929.8,1928.8,0.35192071]
[1617300506720,66.4293,1929.8,1928.6,0.35196502]
[1617300507323,66.4293,1929.8,1929.0,2.90695]
[1617300508321,66.4293,1929.8,1928.5,30.0]
[1617300508724,66.4293,1929.8,1928.6,0.35197669]
[1617300509123,66.4293,1929.8,1928.6,4.58223218]
[1617300509323,2.90695,1928.7,1928.6,7.48918218]
[1617300509526,2.90695,1928.7,1928.6,2.90695]
[1617300509725,2.90695,1928.7,1928.6,3.25896248]
[1617300511226,2.90695,1928.7,1928.6,2.90695]
[1617300511727,2.90695,1928.7,1928.6,3.25899887]
[1617300512327,2.90695,1928.7,1928.6,2.90695]
[1617300513134,81.973,1928.9,1928.6,3.25896737]
[1617300513334,2.90695,1929.0,1928.7,74.3234]
[1617300515233,2.90695,1929.0,1928.9,2.90695]
[1617300515435,74.3234,1929.6,1928.9,2.90695]
[1617300517333,74.3234,1929.6,1929.2,2.90695]
[1617300519339,2.90695,1929.3,1929.2,2.90695]
[1617300523143,32.0,1931.0,1929.9,81.7644]
[1617300523343,2.90695,1930.0,1929.9,81.7644]
[1617300524844,2.90695,1930.0,1929.9,111.7644]
[1617300525044,1.0204,1931.7,1930.0,81.3369]
[1617300525397,81.3369,1932.0,1931.1,2.90695]
[1617300525567,1.0271,1932.6,1931.1,2.90695]
[1617300525748,1.0271,1932.6,1931.6,81.334]
[1617300526047,1.0271,1932.6,1931.1,2.90695]
[1617300526346,2.0,1932.1,1930.9,74.291]
[1617300527346,2.90695,1931.0,1930.9,77.19795]
[1617300528246,2.90695,1931.0,1930.9,74.291]
[1617300529147,83.2127,1930.7,1929.7,4.22702996]
[1617300529347,83.2127,1930.7,1929.8,2.90695]
[1617300529547,83.2127,1930.7,1929.8,3.26074953]
[1617300529790,85.2127,1930.7,1929.8,0.35379953]
[1617300529949,85.2127,1930.7,1929.2,34.22754753]
[1617300530168,85.2127,1930.7,1929.1,87.44064805]
[1617300530447,81.6484,1930.0,1929.2,0.35394273]
[1617300530947,2.0,1929.9,1929.0,0.35400826]
[1617300531279,32.0,1929.9,1928.5,4.22909278]
[1617300531456,32.0,1929.9,1928.8,2.90695]
[1617300531864,32.0,1929.9,1928.9,0.35411143]
[1617300533569,2.90695,1929.0,1928.9,0.35411143]
[1617300534569,2.90695,1929.0,1928.8,2.90695]
[1617300536863,2.90695,1929.0,1928.2,4.22828425]
[1617300537361,2.90695,1928.4,1928.3,0.3536264]
[1617300538162,2.90695,1928.4,1928.0,0.35370341]
[1617300538361,2.90695,1928.4,1928.3,0.35371805]
[1617300538762,2.90695,1928.4,1927.8,0.3537473]
[1617300539461,2.90695,1927.9,1927.8,2.90695]
[1617300540065,2.90695,1927.9,1927.8,3.26072362]
[1617300543170,2.90695,1927.9,1927.8,0.35377362]
[1617300543570,2.90695,1927.9,1927.5,3.26087572]
[1617300543871,67.4504,1927.6,1927.5,2.90695]
[1617300544118,67.4504,1927.6,1927.1,4.23043489]
[1617300544329,67.4504,1927.6,1927.5,0.35394704]
[1617300544473,32.90695,1927.9,1927.5,0.35394704]
[1617300544673,85.8379,1927.3,1927.2,0.35399033]
[1617300544874,85.8379,1927.3,1926.8,4.23078332]
[1617300545073,85.8379,1927.3,1927.2,0.35399387]
[1617300545375,85.8379,1927.3,1926.9,4.23079023]
[1617300545575,88.74485,1927.3,1926.8,2.90695]
[1617300546276,2.90695,1927.3,1926.8,2.90695]
[1617300547679,32.0,1927.7,1926.8,2.90695]
[1617300547680,2.90695,1926.9,1926.8,2.90695]
[1617300549582,64.2863,1926.3,1925.7,30.0]
[1617300550379,64.2863,1926.3,1925.8,2.0]
[1617300550979,2.90695,1926.9,1925.8,32.0]
[1617300551179,2.90695,1926.9,1925.9,64.7413]
[1617300551380,2.90695,1926.9,1925.3,1.0356]
[1617300551580,64.8007,1925.9,1925.3,3.0356]
[1617300552781,64.8007,1925.9,1925.3,33.0356]
[1617300553580,64.8007,1925.9,1925.8,2.90695]
[1617300554382,2.90695,1926.4,1925.8,2.90695]
[1617300554698,78.35245,1926.4,1925.8,2.90695]
[1617300555590,78.35245,1926.4,1926.3,2.90695]
[1617300556687,2.90695,1926.4,1926.3,2.90695]
[1617300556888,73.5509,1927.2,1926.3,2.90695]
[1617300557508,2.90695,1926.9,1926.8,2.90695]
[1617300557935,73.5509,1927.2,1926.8,2.90695]
[1617300559596,73.5509,1927.2,1927.0,2.90695]
[1617300560092,73.5509,1927.2,1926.0,73.5509]
[1617300561093,73.5509,1927.2,1926.0,103.5509]
[1617300561294,73.5509,1927.2,1926.1,2.0]
[1617300561493,73.5509,1927.2,1927.1,2.90695]
[1617300561698,16.8837,1929.7,1927.1,2.90695]
[1617300561898,75.7183,1928.3,1927.1,2.90695]
[1617300563600,75.7183,1928.3,1927.8,2.90695]
[1617300564600,75.7183,1928.3,1926.9,75.7183]
[1617300565801,30.0,1929.7,1926.5,1.0351]
[1617300566000,72.5925,1929.1,1927.2,73.6243]
[1617300567502,72.5925,1929.1,1927.2,103.6243]
[1617300567702,2.90695,1928.5,1928.4,2.90695]
[1617300568502,3.93915,1928.5,1928.4,2.90695]
[1617300568702,2.90695,1928.5,1928.4,2.90695]
[1617300568903,2.90695,1928.5,1928.2,70.3837]
[1617300569705,70.3837,1929.3,1928.4,2.90695]
[1617300570807,71.4064,1929.3,1928.4,2.90695]
[1617300571607,70.3837,1929.3,1928.8,2.90695]
[1617300573007,70.3837,1929.3,1928.9,20.0]
[1617300573709,2.90695,1929.0,1928.9,20.0]
[1617300574910,2.90695,1929.0,1928.9,19.732]
[1617300595640,84.0084,1928.9,1927.4,71.5612]
[1617300595841,2.90695,1927.5,1927.1,2.90695]
[1617300596039,86.92445,1927.5,1927.1,2.90695]
[1617300596439,86.92445,1927.5,1926.4,30.0]
[1617300596638,86.92445,1927.5,1926.4,32.0]
[1617300596839,86.92445,1927.5,1926.5,0.35324719]
[1617300597140,30.0,1929.0,1927.4,65.571]
[1617300597867,1.0474,1929.9,1928.2,2.90695]
[1617300598040,64.4307,1929.9,1928.4,63.3833]
[1617300598242,30.0,1929.8,1928.4,63.3833]
[1617300598642,2.0,1929.7,1928.4,63.3833]
[1617300598842,32.0,1929.7,1928.4,63.3833]
[1617300599742,2.90695,1928.7,1928.6,2.90695]
[1617300601845,2.90695,1928.9,1928.6,2.90695]
[1617300602746,2.90695,1928.9,1928.0,89.8782]
[1617300602946,2.90695,1928.9,1928.7,20.0]
[1617300603365,2.90695,1928.9,1928.0,89.8782]
[1617300603647,2.90695,1928.9,1928.1,20.0]
[1617300603848,2.90695,1928.6,1928.5,2.90695]
[1617300604264,59.8782,1929.2,1928.5,2.90695]
[1617300604748,59.8782,1929.2,1928.5,22.90695]
[1617300605750,59.8782,1929.2,1928.7,2.90695]
[1617300606751,59.8782,1929.2,1928.8,20.0]
[1617300607751,2.90695,1928.9,1928.8,20.0]
[1617300609755,2.90695,1928.9,1928.8,22.90695]
[1617300611754,2.90695,1928.9,1928.8,20.0]
[1617300620667,2.90695,1928.9,1928.8,9.9877]
[1617300620668,32.90695,1928.9,1928.8,9.9877]
[1617300620871,65.8567,1928.2,1927.3,65.8567]
[1617300621167,65.8567,1928.2,1927.4,20.0]
[1617300621870,2.90695,1927.5,1927.4,20.0]
[1617300623069,2.90695,1927.5,1927.3,65.8567]
[1617300623269,32.0,1928.9,1927.2,2.90695]
[1617300623470,85.1454,1928.9,1927.5,85.1454]
[1617300623874,85.1454,1928.9,1928.1,2.90695]
[1617300625872,2.90695,1928.2,1928.1,2.90695]
[1617300626874,2.90695,1928.2,1928.1,22.90695]
[1617300628375,2.90695,1928.2,1928.1,2.90695]
[1617300637696,85.1454,1928.9,1928.1,2.90695]
[1617300638194,2.90695,1928.7,1928.6,2.90695]
[1617300638395,3.0413,1929.3,1927.4,34.24037209]
[1617300638595,85.094,1929.2,1927.5,85.094]
[1617300638798,85.094,1929.2,1927.5,89.6887177]
[1617300638995,85.094,1929.2,1927.6,0.35433869]
[1617300639196,85.094,1929.2,1927.6,2.1823914]
[1617300639499,85.094,1929.2,1927.6,22.1823914]
[1617300639695,85.094,1929.2,1927.7,0.35434922]
[1617300640195,85.094,1929.2,1928.5,2.90695]
[1617300640196,87.094,1929.2,1928.5,2.90695]
[1617300641398,87.094,1929.2,1928.6,20.0]
[1617300642101,2.90695,1928.7,1928.6,20.0]
[1617300647303,1.0413,1929.3,1928.7,61.5961]
[1617300648103,1.0413,1929.3,1928.8,20.0]
[1617300648402,1.0413,1929.3,1928.8,22.90695]
[1617300649405,1.0413,1929.3,1928.8,20.0]
[1617300650205,66.23325,1928.9,1928.8,22.90695]
[1617300653207,66.23325,1928.9,1928.8,20.0]
[1617300655711,68.23325,1928.9,1928.8,20.0]
[1617300658215,68.23325,1928.9,1927.8,63.3263]
[1617300658417,65.3263,1928.9,1927.9,2.90695]
[1617300658917,65.3263,1928.9,1927.5,4.25032846]
[1617300658918,33.0407,1928.8,1927.5,4.25032846]
[1617300659316,64.129,1928.0,1927.5,4.25032846]
[1617300659517,64.129,1928.0,1927.4,4.25066414]
[1617300659918,64.129,1928.0,1927.3,4.250734]
[1617300660622,2.90695,1927.4,1927.2,2.90695]
[1617300666423,2.90695,1927.9,1927.2,2.90695]
[1617300666826,2.90695,1927.9,1927.5,84.9229]
[1617300668527,33.0407,1928.8,1927.6,2.90695]
[1617300668829,73.8738,1928.3,1927.6,2.90695]
[1617300670230,75.8738,1928.3,1927.6,2.90695]
[1617300670530,2.90695,1927.7,1927.6,2.90695]
[1617300670732,2.90695,1927.7,1927.0,6.07283179]
[1617300670939,76.2116,1927.2,1927.0,1.82850851]
[1617300671337,76.2116,1927.2,1926.5,4.2459135]
[1617300671834,76.2116,1927.2,1926.6,0.35506556]
[1617300672333,76.2116,1927.2,1926.5,0.35504304]
[1617300672535,76.2116,1927.2,1926.9,2.90695]
[1617300674537,2.90695,1927.0,1926.9,2.90695]
[1617300675740,2.90695,1927.0,1926.9,3.26194067]
[1617300675939,79.3502,1927.5,1926.9,3.26194067]
[1617300676506,79.3502,1927.5,1927.0,0.35491387]
[1617300676643,2.90695,1927.8,1927.4,2.90695]
[1617300678644,58.3571,1928.3,1927.7,2.90695]
[1617300679946,2.0,1928.2,1927.2,58.3571]
[1617300680173,58.3571,1928.3,1927.2,58.3571]
[1617300680648,58.3571,1928.3,1927.7,2.90695]
[1617300680947,58.3571,1928.3,1927.2,58.3571]
[1617300681147,2.0,1928.2,1927.2,58.3571]
[1617300681347,32.0,1928.2,1926.5,18.09841005]
[1617300681649,81.2988,1927.6,1926.6,0.3545331]
[1617300682049,81.2988,1927.6,1926.6,4.59965316]
[1617300682549,81.2988,1927.6,1927.3,2.90695]
[1617300683150,2.0,1928.2,1927.3,2.90695]
[1617300683350,67.9191,1927.9,1927.3,2.90695]
[1617300684253,2.0,1928.5,1927.3,2.90695]
[1617300684451,2.0,1928.7,1927.5,83.3804]
[1617300684751,114.4211,1928.8,1927.8,2.90695]
[1617300685252,114.4211,1928.8,1927.5,83.3804]
[1617300686155,2.0,1928.7,1927.5,83.3804]
[1617300686755,2.0,1928.7,1926.9,4.24464807]
[1617300686756,72.6082,1927.9,1927.7,2.90695]
[1617300687855,2.0,1928.7,1927.7,2.90695]
[1617300688155,63.6003,1928.6,1927.7,2.90695]
[1617300688556,2.90695,1927.8,1927.7,2.90695]
[1617300695367,2.90695,1927.8,1927.7,22.90695]
[1617300696269,2.90695,1927.8,1927.7,2.90695]
[1617300697668,2.90695,1927.8,1927.3,93.6003]
[1617300698670,63.6003,1928.6,1927.7,2.90695]
[1617300700672,2.90695,1927.8,1927.7,2.90695]
[1617300702574,1.0407,1928.8,1927.7,2.90695]
[1617300702773,2.90695,1928.4,1928.3,76.9688]
[1617300703274,1.0407,1928.8,1928.3,76.9688]
[1617300704173,1.0407,1928.8,1928.4,20.0]
[1617300704673,1.0407,1928.8,1928.5,2.90695]
[1617300705374,79.7504,1928.8,1928.5,2.90695]
[1617300705578,79.7504,1928.8,1928.6,20.0]
[1617300705974,1.0407,1928.8,1927.4,4.24898661]
[1617300706174,1.0407,1928.8,1927.5,30.0]
[1617300706475,1.0407,1928.8,1927.9,60.631]
[1617300706774,2.90695,1928.7,1928.5,2.90695]
[1617300707879,2.90695,1928.7,1928.6,20.0]
[1617300708682,2.90695,1928.7,1928.6,22.90695]
[1617300708885,1.0413,1929.3,1928.6,22.90695]
[1617300710783,1.0413,1929.3,1928.9,2.90695]
[1617300711587,1.0413,1929.3,1929.0,20.0]
[1617300712786,2.90695,1929.1,1929.0,20.0]
[1617300723900,32.90695,1929.1,1929.0,14.8345]
[1617300724104,32.90695,1929.1,1927.5,4.24254749]
[1617300724530,58.5444,1927.9,1927.3,1.8285425]
[1617300724722,58.5444,1927.9,1927.2,58.5259]
[1617300724914,2.90695,1927.3,1927.2,61.43285]
[1617300732712,2.90695,1927.3,1927.2,58.5259]
[1617300732912,2.90695,1927.3,1926.8,16.99965]
[1617300733813,2.90695,1927.3,1926.8,14.0927]
[1617300734814,2.90695,1926.9,1926.8,14.0927]
[1617300741317,2.90695,1926.9,1926.5,2.90695]
[1617300741919,68.6957,1926.7,1926.5,2.90695]
[1617300743017,2.90695,1926.6,1926.5,2.90695]
[1617300746323,2.90695,1926.6,1925.7,6.06916215]
[1617300746724,74.9742,1926.0,1925.7,6.06916215]
[1617300747026,74.9742,1926.0,1925.8,2.90695]
[1617300749025,2.90695,1925.9,1925.8,2.90695]
[1617300753928,68.97155,1925.9,1925.8,2.90695]
[1617300757242,66.0646,1925.9,1925.8,2.90695]
[1617300758038,1.0224,1926.9,1925.8,2.90695]
[1617300758240,72.3983,1927.4,1925.9,72.3983]
[1617300758438,72.3983,1927.4,1926.0,30.0]
[1617300759138,2.90695,1927.4,1927.3,2.90695]
[1617300760039,2.90695,1927.4,1926.9,79.374]
[1617300760241,2.90695,1927.4,1926.5,30.0]
[1617300760442,64.5879,1927.3,1926.5,30.0]
[1617300761346,64.5879,1927.3,1927.0,2.90695]
[1617300761669,64.5879,1927.3,1925.8,94.5879]
[1617300762743,66.5879,1927.3,1925.8,94.5879]
[1617300763143,66.5879,1927.3,1926.3,2.90695]
[1617300763544,2.0,1927.1,1925.8,64.5879]
[1617300763746,2.0,1927.1,1925.5,14.2757]
[1617300763947,60.613,1926.7,1925.5,14.2757]
[1617300765247,2.90695,1926.7,1926.6,2.90695]
[1617300771255,2.90695,1926.7,1925.8,30.0]
[1617300771555,84.47715,1926.7,1925.6,30.0]
[1617300773256,81.5702,1926.7,1926.0,2.90695]
[1617300774156,1.0455,1927.6,1926.0,2.90695]
[1617300774356,71.6434,1927.7,1926.1,71.6434]
[1617300775257,2.0,1927.6,1926.4,2.90695]
[1617300775659,71.6434,1927.7,1926.4,2.90695]
[1617300776362,73.6434,1927.7,1926.4,2.90695]
[1617300776560,71.6434,1927.7,1926.4,2.90695]
[1617300777260,71.6434,1927.7,1926.6,2.90695]
[1617300778162,2.0,1927.6,1926.6,2.90695]
[1617300779262,2.90695,1926.7,1926.4,2.90695]
[1617300781265,2.90695,1926.5,1926.4,2.90695]
[1617300791583,2.90695,1926.5,1925.6,30.0]
[1617300792175,2.90695,1926.5,1925.7,0.35565088]
[1617300793580,75.9145,1926.9,1926.3,2.90695]
[1617300793780,75.9145,1926.9,1925.7,0.35565088]
[1617300795382,75.9145,1926.9,1926.0,2.90695]
[1617300797385,75.9145,1926.9,1926.4,2.90695]
[1617300797584,75.9145,1926.9,1926.1,0.35574992]
[1617300797783,75.9145,1926.9,1925.6,30.0]
[1617300798282,75.9145,1926.9,1925.7,0.35576955]
[1617300799583,75.9145,1926.9,1926.1,2.90695]
[1617300799790,1.0299,1927.6,1926.1,2.90695]
[1617300800085,76.9375,1927.6,1926.3,76.9375]
[1617300800329,76.9375,1927.6,1926.3,106.9375]
[1617300801085,77.9854,1927.6,1926.4,0.35568275]
[1617300801484,77.9854,1927.6,1926.9,2.90695]
[1617300801986,76.9375,1927.6,1926.9,2.90695]
[1617300803587,2.90695,1927.0,1926.9,2.90695]
[1617300808491,3.93865,1927.0,1926.9,2.90695]
[1617300808693,2.90695,1927.0,1926.9,2.90695]
[1617300810796,66.34505,1927.0,1926.9,2.90695]
[1617300812596,66.34505,1927.0,1926.0,4.25028766]
[1617300812796,3.94925,1927.0,1926.0,4.25028766]
[1617300813000,2.90695,1927.0,1926.1,0.35600242]
[1617300813198,76.2558,1926.5,1926.1,0.35600242]
[1617300813398,76.2558,1926.5,1926.0,0.3560054]
[1617300813599,76.2558,1926.5,1926.3,2.90695]
[1617300815709,2.90695,1926.4,1926.3,2.90695]
[1617300817410,2.90695,1926.4,1926.0,4.25719757]
[1617300817759,2.90695,1926.4,1926.0,7.16414757]
[1617300818132,2.90695,1926.4,1926.0,2.90695]
[1617300819712,2.90695,1926.1,1926.0,2.90695]
[1617300822921,2.90695,1926.1,1926.0,3.26317238]
[1617300824420,30.0,1927.5,1926.0,3.26317238]
[1617300824720,59.6369,1927.0,1926.0,2.90695]
[1617300824922,30.0,1927.5,1926.0,7.16394394]
[1617300825122,81.9034,1926.3,1926.0,7.16394394]
[1617300825320,81.9034,1926.3,1926.0,2.90695]
[1617300825522,81.9034,1926.3,1926.1,0.3561584]
[1617300825823,81.9034,1926.3,1926.2,2.90695]
[1617300827728,84.81035,1926.3,1926.2,2.90695]
[1617300828722,84.81035,1926.3,1925.8,4.25792243]
[1617300828923,2.90695,1926.3,1925.9,4.25794054]
[1617300829124,2.90695,1926.3,1925.8,4.25818256]
[1617300829826,100.9211,1926.5,1925.9,2.90695]
[1617300830025,1.0502,1927.0,1925.9,2.90695]
[1617300830228,83.1136,1926.0,1925.9,2.90695]
[1617300831928,86.02055,1926.0,1925.9,2.90695]
[1617300832629,86.02055,1926.0,1925.9,3.26334273]
[1617300833030,86.02055,1926.0,1925.9,2.90695]
[1617300833231,86.02055,1926.0,1925.9,3.26333618]
[1617300833931,86.02055,1926.0,1925.9,2.90695]
[1617300835650,86.02055,1926.0,1925.9,3.26332671]
[1617300835935,87.06935,1926.0,1925.9,3.26332671]
[1617300836135,86.02055,1926.0,1925.9,3.26332671]
[1617300837036,86.02055,1926.0,1925.9,2.90695]
[1617300839141,86.02055,1926.0,1925.9,3.26385104]
[1617300840144,86.02055,1926.0,1925.9,2.90695]
[1617300840845,86.02055,1926.0,1925.9,3.26385311]
[1617300841049,86.02055,1926.0,1925.9,2.90695]
[1617300841647,86.02055,1926.0,1925.9,3.26379073]
[1617300842949,86.02055,1926.0,1925.9,2.90695]
[1617300843351,86.02055,1926.0,1925.9,3.26379552]
[1617300844552,86.02055,1926.0,1925.9,2.90695]
[1617300848559,2.90695,1926.0,1925.9,2.90695]
[1617300848758,2.90695,1926.0,1925.6,4.25459443]
[1617300849059,2.90695,1926.0,1925.5,18.53114098]
[1617300849256,2.90695,1926.0,1925.7,0.35682435]
[1617300849558,80.226,1925.7,1925.6,0.35683133]
[1617300850058,83.13295,1925.7,1925.6,0.35683133]
[1617300852665,2.90695,1925.7,1925.6,0.35683133]
[1617300853966,89.85325,1925.7,1925.6,0.35683133]
[1617300856572,89.85325,1925.7,1925.5,17.18265]
[1617300856770,89.85325,1925.7,1925.6,0.35676829]
[1617300857271,89.85325,1925.7,1925.5,17.18265]